Cogmind - Beta 11 @@@ ROGUE MODE // 2022.04.11 @ 12:31:49 Player: Andrew Bellemen Result: Destroyed by S-27 Virus with Autogun Performance ------------- Evolutions (1) 500 Regions Visited (6) 1200 Robots Destroyed (56) 280 Value Destroyed (1559) 1559 Prototype IDs (2) 40 Alien Tech Used (0) 0 Bonus (132) 132 TOTAL SCORE: 3711 Bonus ------- High Alert Combat Kills 10 Follower Combat Kills 122 Cogmind --------- Core Integrity 0/400 Matter 450/450 Energy 240/240 System Corruption 0% Temperature Cool (0) Movement Walking (120) Location -6/Proximity Caves Parts ------- > --- POWER (1) -------- Nuclear Core > --- PROPULSION (4) --- Aluminum Leg Aluminum Leg Aluminum Leg > --- UTILITY (2) ------ Medium Storage Unit Compact Matter Pod > --- WEAPON (2) ------- EM Shotgun > --- INVENTORY (10) --- Nuclear Core Nuclear Core Improved Deuterium Engine Hardened Light Armor Plating Mining Laser CR-A16's Pointy Stick Peak State ------------ > --- POWER ------------ Nuclear Core > --- PROPULSION ------- Aluminum Leg Aluminum Leg Aluminum Leg Aluminum Leg > --- UTILITY ---------- Medium Storage Unit Compact Matter Pod > --- WEAPON ----------- Flak Cannon RU-N14's Throwing Claymores > --- INVENTORY -------- Nuclear Core Nuclear Core Aluminum Leg Aluminum Leg Aluminum Leg Hardened Light Armor Plating EM Shotgun Mining Laser CR-A16's Pointy Stick [Rating: 22] Favorites ----------- Power Nuclear Core Engine Ion Engine Power Core Nuclear Core Propulsion Aluminum Leg Leg Aluminum Leg Utility Medium Storage Unit Storage Medium Storage Unit Weapon Flak Cannon Energy Gun Small Laser Ballistic Gun Heavy Assault Rifle Ballistic Cannon Flak Cannon Special Weapon RU-N14's Throwing Claymores Build | -11 -10 -10 -9 -9 -7 -6 ------- Run | Scr Mat Min Mat Min Zio Pro Slots Evolved 2 | . . . 2 . . . Power . | . . . . . . . Propulsion 2 | . . . 2 . . . Utility . | . . . . . . . Weapon . | . . . . . . . Parts Attached 38 | 8 1 2 17 4 1 5 Power 4 | 2 . . 2 . . . Engine 3 | 2 . . 1 . . . Core 1 | . . . 1 . . . Reactor . | . . . . . . . Propulsion 15 | 2 . . 8 1 . 4 Treads . | . . . . . . . Leg 15 | 2 . . 8 1 . 4 Wheel . | . . . . . . . Hover . | . . . . . . . Flight . | . . . . . . . Utility 4 | 1 . 2 1 . . . Device . | . . . . . . . Storage 4 | 1 . 2 1 . . . Processor . | . . . . . . . Hackware . | . . . . . . . Protection . | . . . . . . . Artifact . | . . . . . . . Weapon 15 | 3 1 . 6 3 1 1 Energy Gun 5 | 2 1 . 1 . . 1 Energy Cannon . | . . . . . . . Ballistic Gun 7 | 1 . . 5 1 . . Ballistic Cannon 1 | . . . . 1 . . Launcher . | . . . . . . . Special Weapon 2 | . . . . 1 1 . Impact Weapon . | . . . . . . . Slashing Weapon . | . . . . . . . Piercing Weapon . | . . . . . . . Special Melee Weapon . | . . . . . . . Unidentified Prototypes 2 | . . . 1 . 1 . Parts Lost 17 | . 1 . 8 2 . 6 Power 1 | . . . 1 . . . Propulsion 11 | . . . 5 1 . 5 Utility . | . . . . . . . Weapon 5 | . 1 . 2 1 . 1 Highest Loss Streak 4 | . 1 . 3 1 . 4 To Critical Strikes . | . . . . . . . Average Slot Usage (%) 96 | . 85 86 98 100 100 89 Engine 3 | . 14 14 7 . . . Core 7 | . . . 3 11 11 11 Leg 40 | . 28 28 43 44 44 34 Storage 20 | . 14 15 21 22 22 22 Energy Gun 2 | . 14 14 1 . . 3 Ballistic Gun 11 | . 14 14 19 8 9 . Ballistic Cannon 6 | . . . . 11 11 11 Special Weapon 1 | . . . . 2 1 7 Naked Turns . | . . . . . . . Heaviest Build 32 | 14 14 19 24 27 32 32 Greatest Support 50 | 20 20 20 40 40 40 50 Greatest Overweight (x) 1 | . . . . . . 1 Average Overweight (x) . | . . . . . . . Largest Inventory Capacity 10 | 8 8 10 10 10 10 10 Average Capacity 9 | 7 8 9 10 10 10 10 Most Carried 10 | 6 8 9 10 10 10 9 Average Carried 8 | 3 7 8 8 9 9 6 Final Capacity 10 | 8 8 10 10 10 10 10 Final Carried 10 | 6 8 9 10 10 9 6 Class Distribution -------------------- 58% | Scavenger-Mutant 41% | Mutant Dominant Class ---------------- Mutant | -10/Materials Mutant | -10/Mines Mutant | -9/Materials Scavenger-Mutant | -9/Mines Scavenger-Mutant | -7/Zion Mutant | -6/Proximity Caves Resources | -11 -10 -10 -9 -9 -7 -6 ----------- Run | Scr Mat Min Mat Min Zio Pro Matter Collected 1143 | 245 88 13 323 318 66 90 Remotely . | . . . . . . . Salvage Created 1508 | . 188 . 696 326 . 298 Parts 101 | . 18 . 46 30 . 7 Haulers Intercepted . | . . . . . . . Recyclers Shooed 2 | . . . . 2 . . Parts Field Recycled . | . . . . . . . Retrieved Matter . | . . . . . . . Parts Self-Destructed 6 | . . . . . . 6 Prevented . | . . . . . . . Kills | -11 -10 -10 -9 -9 -7 -6 ------- Run | Scr Mat Min Mat Min Zio Pro Combat Hostiles Destroyed 51 | . 8 . 18 15 . 10 Guns 30 | . 8 . 17 5 . . Cannons 14 | . . . . 10 . 4 AOE 7 | . . . 1 . . 6 Classes Destroyed 10 | . 3 . 3 2 . 2 Worker 4 | . 1 . 1 2 . . Recycler 1 | . . . . 1 . . Operator 1 | . . . 1 . . . Swarmer 20 | . 6 . 3 10 . 1 Grunt 20 | . 2 . 11 4 . 3 Brawler 1 | . . . . . . 1 Duelist 4 | . . . 1 . . 3 Sentry 3 | . . . 3 . . . Hunter 2 | . . . . . . 2 Assembled 1 | . . . . 1 . . Best Kill Streak 6 | . 4 . 3 6 . 5 Combat Bots Only 6 | . 3 . 3 6 . 5 Max Kills in Single Turn 2 | . 2 . 2 2 . 2 Gunslinging . | . . . . . . . Exploded 2 | . . . 1 . . 2 Melee . | . . . . . . . Uniques/NPCs Destroyed . | . . . . . . . Combat | -11 -10 -10 -9 -9 -7 -6 -------- Run | Scr Mat Min Mat Min Zio Pro Damage Taken 2554 | . 363 34 1092 438 . 627 Core 520 | . 100 18 182 63 . 157 Absorbed by Shields . | . . . . . . . Core Remaining (%) 76 | 100 . 52 . . . . Volleys Fired 138 | . 16 . 62 49 . 11 Largest 2 | . 2 . 2 2 . 2 Hottest 100 | . 70 . 60 100 . 44 Shots Fired 246 | . 31 . 118 77 . 20 Gun 182 | . 31 . 118 33 . . Cannon 37 | . . . . 27 . 10 Launcher . | . . . . . . . Special 27 | . . . . 17 . 10 Kinetic 193 | . 16 . 107 60 . 10 Thermal 43 | . 15 . 11 17 . . Explosive 10 | . . . . . . 10 Electromagnetic . | . . . . . . . Robot Hit Streak 18 | . 4 . 18 5 . 5 Robot Miss Streak 12 | . 4 . 4 12 . 8 Penetration Max . | . . . . . . . Secondary Targets 3 | . 1 . 2 . . . Max Gunslinging Chain 1 | . 1 . 1 . . . Shots Hit Robots 138 | . 17 . 75 32 . 14 Core Hits 106 | . 12 . 35 33 . 26 Critical Kills . | . . . . . . . Critical Parts Destroyed 1 | . 1 . . . . . Critical Strikes 5 | . 2 . . . . 3 Burn 1 | . 1 . . . . . Destroy 1 | . 1 . . . . . Sever 3 | . . . . . . 3 Melee Attacks . | . . . . . . . Impact . | . . . . . . . Slashing . | . . . . . . . Piercing . | . . . . . . . Sneak Attacks . | . . . . . . . Combat Hostiles . | . . . . . . . Follow-up Attacks . | . . . . . . . Damage Inflicted 4045 | . 219 . 1288 658 . 1880 Guns 1409 | . 219 . 934 256 . . Cannons 556 | . . . . 392 . 164 Explosions 1836 | . . . 354 . . 1482 Melee . | . . . . . . . Ramming 10 | . . . . 10 . . Kinetic 1795 | . 107 . 876 648 . 164 Thermal 170 | . 112 . 58 . . . Explosive 1836 | . . . 354 . . 1482 Electromagnetic . | . . . . . . . Impact . | . . . . . . . Slashing 234 | . . . . . . 234 Piercing . | . . . . . . . Highest Corruption . | . . . . . . . Average Corruption . | . . . . . . . Corruption Purged . | . . . . . . . Corruption Blocked . | . . . . . . . Overload Shots . | . . . . . . . Overflow Damage 22 | . . . . 2 . 20 Projectiles 2 | . . . . 2 . . Explosions 20 | . . . . . . 20 Melee . | . . . . . . . Knockbacks 21 | . . . . 19 . 2 Impact . | . . . . . . . Kinetic 19 | . . . . 17 . 2 Secondary 2 | . . . . 2 . . Self-Inflicted Damage . | . . . . . . . Shots . | . . . . . . . Rammed . | . . . . . . . Targets Rammed 1 | . . . . 1 . . Kicked 1 | . . . . 1 . . Crushed . | . . . . . . . Highest Temperature 86 | . 51 . 60 86 . 11 Average Temperature 23 | . 19 . 21 26 . 4 Received Heat Transfer 645 | . 54 . 366 78 . 147 Siege Activations . | . . . . . . . Robots Corrupted . | . . . . . . . Combat Hostiles . | . . . . . . . Parts Fried . | . . . . . . . Impact Corruptions . | . . . . . . . Robots Melted . | . . . . . . . Combat Hostiles . | . . . . . . . Parts Melted . | . . . . . . . Heat Transferred 520 | . 395 . 125 . . . Parts Sabotaged . | . . . . . . . Parts Stolen . | . . . . . . . Parts Stripped . | . . . . . . . Power Chain Reactions . | . . . . . . . Missiles Intercepted . | . . . . . . . Alert | -11 -10 -10 -9 -9 -7 -6 ------- Run | Scr Mat Min Mat Min Zio Pro Peak Influence 519 | . 205 109 398 519 . . Initial 154 | . . 79 42 154 . . Average 165 | . 121 82 126 333 . . Maximum Alert Level 2 | . 1 . 1 2 . . Low Security (%) 69 | 100 80 100 91 1 . . Level 1 22 | . 19 . 8 62 . . Level 2 8 | . . . . 35 . . Level 3 . | . . . . . . . Level 4 . | . . . . . . . Level 5 . | . . . . . . . High Security . | . . . . . . . Max Security . | . . . . . . . Squads Dispatched 3 | . 1 . 1 . . 1 Investigation . | . . . . . . . Extermination . | . . . . . . . Reinforcement 2 | . 1 . 1 . . . Assault 1 | . . . . . . 1 Garrison . | . . . . . . . Intercept . | . . . . . . . Searches Triggered . | . . . . . . . Construction Impeded . | . . . . . . . Haulers Reinforced . | . . . . . . . Active Scanning Responses . | . . . . . . . Cargo Convoy Interrupts . | . . . . . . . Stealth | -11 -10 -10 -9 -9 -7 -6 --------- Run | Scr Mat Min Mat Min Zio Pro Distress Signals 4 | . 2 . 2 . . . Communications Jammed . | . . . . . . . Distress Signals . | . . . . . . . Times Spotted 82 | . 12 4 29 15 . 22 Peak Tracking Total 9 | . 6 3 5 3 . 9 Tactical Retreats 3 | . . 1 . . . 2 Traps | -11 -10 -10 -9 -9 -7 -6 ------- Run | Scr Mat Min Mat Min Zio Pro Traps Triggered . | . . . . . . . Indirectly . | . . . . . . . Trap Hack Attempts . | . . . . . . . Triggered . | . . . . . . . Disarmed . | . . . . . . . Reprogrammed . | . . . . . . . Reused . | . . . . . . . Traps Extracted . | . . . . . . . Installed . | . . . . . . . Triggered . | . . . . . . . Machines | -11 -10 -10 -9 -9 -7 -6 ---------- Run | Scr Mat Min Mat Min Zio Pro Machines Disabled 4 | . . . 2 . . 2 Max in Single Turn 2 | . . . 2 . . 1 Machines Sabotaged . | . . . . . . . Garrisons Compromised . | . . . . . . . Overloaded Fab Kills . | . . . . . . . Hacking | -11 -10 -10 -9 -9 -7 -6 --------- Run | Scr Mat Min Mat Min Zio Pro Machines Accessed 6 | . 2 . 4 . . . Terminals 5 | . 1 . 4 . . . Fabricators . | . . . . . . . Repair Stations 1 | . 1 . . . . . Recycling Units . | . . . . . . . Scanalyzers . | . . . . . . . Garrison Access . | . . . . . . . Total Hacks 19 | . 7 . 12 . . . Successful 15 | . 6 . 9 . . . Failed 4 | . 1 . 3 . . . Catastrophic 1 | . . . 1 . . . Database Lockouts . | . . . . . . . Manual 2 | . 1 . 1 . . . Terminals 18 | . 6 . 12 . . . Fabricators . | . . . . . . . Repair Stations 1 | . 1 . . . . . Recycling Units . | . . . . . . . Scanalyzers . | . . . . . . . Garrison Access . | . . . . . . . Terminal Hacks 15 | . 6 . 9 . . . Record 5 | . . . 5 . . . Branch Access Points 1 | . . . 1 . . . Alert Level 3 | . 2 . 1 . . . Unreport Threat 1 | . . . 1 . . . Security Status 2 | . 2 . . . . . Hauler Manifests 1 | . 1 . . . . . Zone Layout 2 | . 1 . 1 . . . Fabricator Hacks . | . . . . . . . Repair Station Hacks . | . . . . . . . Recycling Unit Hacks . | . . . . . . . Scanalyzer . | . . . . . . . Garrison Access Hacks . | . . . . . . . Unauthorized Hacks . | . . . . . . . Terminals . | . . . . . . . Fabricators . | . . . . . . . Repair Stations . | . . . . . . . Recycling Units . | . . . . . . . Scanalyzers . | . . . . . . . Garrison Access . | . . . . . . . Data Cores Recovered 1 | . . . 1 . . . Used . | . . . . . . . Hacking Detections 5 | . 1 . 4 . . . Full Trace Events . | . . . . . . . Feedback Events . | . . . . . . . Feedback Blocked . | . . . . . . . Robot Schematics Acquired . | . . . . . . . Robots Built . | . . . . . . . Authchips . | . . . . . . . Time . | . . . . . . . Total Robot Build Rating . | . . . . . . . Part Schematics Acquired . | . . . . . . . Parts Built . | . . . . . . . Authchips . | . . . . . . . Time . | . . . . . . . Total Part Build Rating . | . . . . . . . Parts Repaired . | . . . . . . . Time . | . . . . . . . Parts Recycled . | . . . . . . . Recycled Matter . | . . . . . . . Retrieved Matter . | . . . . . . . Retrieved Components . | . . . . . . . Parts Scanalyzed . | . . . . . . . Part Schematics Acquired . | . . . . . . . Parts Damaged . | . . . . . . . Bothacking | -11 -10 -10 -9 -9 -7 -6 ------------ Run | Scr Mat Min Mat Min Zio Pro Used RIF Installer . | . . . . . . . Robots Hacked . | . . . . . . . Non-combat . | . . . . . . . Combat . | . . . . . . . Robot Hacks Applied . | . . . . . . . Relay Couplers Released . | . . . . . . . Fabnet Peak Effective % . | . . . . . . . Robots Rewired 2 | . . . . . . 2 Allies Hacked . | . . . . . . . Hacks Repelled . | . . . . . . . Allies | -11 -10 -10 -9 -9 -7 -6 -------- Run | Scr Mat Min Mat Min Zio Pro Total Allies 4 | . . . . . 2 2 Largest Group 3 | . . . . . 2 3 Highest-Rated Group 98 | . . . . . 59 98 Highest-Rated Ally 39 | . . . . . 39 39 Total Orders . | . . . . . . . Ally Attacks 33 | . . . . . . 33 Total Damage 480 | . . . . . . 480 Kills 4 | . . . . . . 4 Allies Corrupted . | . . . . . . . Allies Melted . | . . . . . . . Intel | -11 -10 -10 -9 -9 -7 -6 ------- Run | Scr Mat Min Mat Min Zio Pro Robot Analysis Total . | . . . . . . . Derelict Logs Recovered 2 | . . . . . 2 . Drone Launches . | . . . . . . . Drone Recoveries . | . . . . . . . Exploration | -11 -10 -10 -9 -9 -7 -6 ------------- Run | Scr Mat Min Mat Min Zio Pro Turns Passed 3178 | 77 367 103 797 409 1129 296 Spaces Moved 2023 | 53 251 83 427 197 859 153 Core 10 | 10 . . . . . . Treads . | . . . . . . . Legs 2013 | 43 251 83 427 197 859 153 Wheels . | . . . . . . . Hover . | . . . . . . . Flight . | . . . . . . . Fastest Speed 50 | 50 120 120 120 120 120 120 Average Speed 122 | 106 120 120 120 120 120 151 Slowest Speed 190 | 120 120 120 120 120 120 190 Overloaded Moves . | . . . . . . . Propulsion Burnouts . | . . . . . . . Robots Hopped . | . . . . . . . Cave-ins Triggered . | . . . . . . . Exploration Rate (%) 33 | 5 30 18 39 49 77 17 Regions Visited 6 Branch Regions 4 Pre-discovered Areas . | . . . . . . . Known Exits Taken 1 | . . . 1 . . . Unknown Exits Taken 5 | 1 1 1 . 1 1 . Scrap Searched 3 | . . . . . 3 . Spaces Dug . | . . . . . . . Terrain Destroyed 100 | . . . 24 5 . 71 Melee . | . . . . . . . Projectile 7 | . . . . 5 . 2 AOE 93 | . . . 24 . . 69 Terrain Rammed . | . . . . . . . Walls Destroyed . | . . . . . . . Machines Disabled . | . . . . . . . Actions | -11 -10 -10 -9 -9 -7 -6 --------- Run | Scr Mat Min Mat Min Zio Pro Total 2465 | 72 288 87 605 257 958 198 Wait 190 | . 10 . 69 5 94 12 Move 2017 | 52 250 82 426 196 858 153 Hop . | . . . . . . . Pick Up 46 | 12 7 1 20 2 2 2 Fast Attach 1 | . . 1 . . . . Attach 30 | 6 1 1 14 2 1 5 Detach 2 | . . 1 1 . . . Swap 7 | 2 . . 3 2 . . Drop 18 | . 4 1 10 . 3 . Fire 138 | . 16 . 62 49 . 11 Melee . | . . . . . . . Ram . | . . . . . . . Kick 1 | . . . . 1 . . Crush . | . . . . . . . Escape Stasis . | . . . . . . . Rewire 15 | . . . . . . 15 Trap . | . . . . . . . Miscellaneous . | . . . . . . . Route ------- -11/Scrapyard -10/Materials -10/Mines -9/Materials (discovered 2 exits: *Min x2) -9/Mines (discovered 2 exits: [*Mat] / [*Zio]) -7/Zion -6/Proximity Caves History --------- Turn | Location | Event 7 | -11/Scrapyard | Discovered new exit (range 16) 78 | -11/Scrapyard | Entered Materials 233 | -10/Materials | Discovered new exit (range 12) 324 | -10/Materials | Build established: Mutant 445 | -10/Materials | Entered Mines 481 | -10/Mines | Assembled infested the area 486 | -10/Mines | Assisted by a Guerilla fighting off Assembled 518 | -10/Mines | Discovered new exit (range 9) 548 | -10/Mines | Entered Materials 548 | -9/Materials | Evolved 2 slots: Propulsion x2 574 | -9/Materials | Identified exit to Mines 715 | -9/Materials | Lost 3 parts (2n1w) 1345 | -9/Materials | Entered Mines 1387 | -9/Mines | Met a Derelict bent on vengeance 1432 | -9/Mines | Excavation squad dispatched 1432 | -9/Mines | A large section of the Mines collapsed 1461 | -9/Mines | Build established: Scavenger-Mutant 1549 | -9/Mines | Core integrity fell below 50% 1668 | -9/Mines | Discovered new exit (range 11) 1678 | -9/Mines | Received a Rocket Launcher from a helpful Derelict 1749 | -9/Mines | A Derelict revealed a hidden shortcut to a safe place 1754 | -9/Mines | Entered Zion 2104 | -7/Zion | Learned Factory emergency access door positions 2214 | -7/Zion | Learned Factory emergency access door positions 2260 | -7/Zion | Found CR-A16's Pointy Stick 2347 | -7/Zion | Learned location of 1 exit from Lower Caves 2524 | -7/Zion | Gained Derelict followers 2746 | -7/Zion | Discovered new exit (range 15) 2756 | -7/Zion | Found Prototype Special Weapon 2758 | -7/Zion | Identified RU-N14's Throwing Claymores 2883 | -7/Zion | Entered Proximity Caves 2883 | -6/Proximity Caves | Accompanied by 2 allies 2888 | -6/Proximity Caves | Attracted the attention of an 0b10 outpost 2912 | -6/Proximity Caves | Core integrity fell below 20% 2932 | -6/Proximity Caves | Lost 4 parts (4n) 3179 | -6/Proximity Caves | Destroyed by S-27 Virus with Autogun Last Messages --------------- 03055_ Penetrated by Slug. 03056_ H-66 Slayer Flexi-carbon Leg severed. 03057_ The unstable cave ceiling collapses. 03057_ Flexi-carbon Leg crushed. 03058_ Penetrated by Slug. 03059_ H-66 Slayer destroyed. 03061_ Penetrated by Slug. 03065_ The unstable cave ceiling collapses. 03077_ Slug penetrates Wall. 03077_ Penetrated by Slug. 03078_ RU-N14's Throwing Claymores expended. 03078_ H-66 Slayer destroyed. 03079_ The unstable cave ceiling collapses. 03088_ Lgt. Fission Core fries itself beyond repair. 03110_ Acquired 46 matter. 03116_ The unstable cave ceiling collapses. 03126_ Acquired Flexi-carbon Leg. 03147_ The unstable cave ceiling collapses. 03178_ Flak Cannon destroyed. 03179_ Flexi-carbon Leg destroyed. Map ----- +----------------------------------------------------+ | ###??????????????????????????????????????????????? | | ##?????????????????????????????????????????????? | | ##????????????????????????????????????????????? | | ##???????####????????????????????????????????? | | #??????# ##???????????????????????????????? | | #????## #?# ????????????????????????????? | | #???? ## ????????????????????????????? | | ######??## ?????????????????????????????? | | #???## ?????????????????????????????? | | ####### #?????????????????????????????? | | #?????????????????????????????? | | ##### #?????????????????????????????? | | #??????????????????????????????? | | # #?# #??????????????????????????????? | | "" # #??# #######????????????????????????? | | #" # #??# ##???????????????????????? | | ## # #"%#### #######?????????????????? | | " #%""## ## #?????????????????? | | % % " #" ## #?????????????????? | | * /%= #???????????????????????? | | # = #???????????????????????? | | % ## ## #???????????????????????? | | # # ## ## #???????????????????????? | | * # ## ## #??????#????????????????? | | ### # # ## ### ##???????????????? | | # # # ### @ #???????????????? | | # # # ### ## ?# #???????????? | | # #? ?? ?###### sss #??????????? | | ## ## ?? ???????? s #??????????? | | ###### ## ??? ????????? #??????????? | | ##???# #####??? ?????????? ##??????????? | | #????# ##???????#???????????######???????????? | | ##????# #?????????????????????????????????????? | | #?????## #?????????????????????????????????????? | | ???????## #?????????????????????????????????????? | | ????????####?????????????????????????????????????? | | ?????????????????????????????????????????????????? | | ?????????????????????????????????????????????????? | | ?????????????????????????????????????????????????? | | ?????????????????????????????????????????????????? | | ?????????????????????????????????????????????????? | | ?????????????????????????????????????????????????? | | ?????????????????????????????????????????????????? | | ?????????????????????????????????????????????????? | | ?????????????????????????????????????????????????? | | ?????????????????????????????????????????????????? | | ?????????????????????????????????????????????????? | | ?????????????????????????????????????????????????? | | ?????????????????????????????????????????????????? | | ?????????????????????????????????????????????????? | +----------------------------------------------------+ Best States ------------- Heat Dissipation 28 Energy Generation 14 Energy Capacity 250 Matter Stores 450 Matter Capacity 450 Sight Range 16 Terrain Scan Density 10 Evasion (%) 55 Item Schematics ----------------- None Robot Schematics ------------------ None Fabricated ------------ Nothing Alien Tech Used ----------------- None Achievements -------------- A New Friend Shopping List Challenges ------------ None Game ------ Seed AluminumMicroNullifier Manual? 0 Play Time 00:46:45 Cumulative 22.5 hours Start 2022.04.11 @ 11:32:18 End 2022.04.11 @ 12:31:49 Sessions 1 Manual Loads 0 Difficulty Rogue Special Mode None Game No. 42 Rogue 40 Adventurer 0 Explorer 2 Win Type - Total 0 Types 0/0/0/0/0/0/0/0/0 Lore% 11 Gallery% 22 Achievement% 12 Wizard Run 0 Options --------- ASCII 0 Keyboard 0 Movement Mouse Keybinds 0 Fullscreen 1 Font 18/SmallcapsGlow Map View 76x50 Tactical HUD 1 Map Filters NONE Filters NONE Steam 1 RUN: fa6f7f09-ee13-45bb-b814-034345d2fe01